[Event "ETCC Open 2023"]
[Site "Budva"]
[Date "2023.11.12"]
[Round "2.41"]
[White "Rapport, Richard"]
[Black "Bjerre, Jonas Buhl"]
[Result "1/2-1/2"]
[ECO "C54"]
[WhiteElo "2748"]
[BlackElo "2633"]
[Annotator "TA"]
[PlyCount "51"]
[EventDate "2023.11.10"]
[EventType "team-tourn"]
[EventCountry "MNE"]
[SourceTitle "playchess.com"]
[Source "ChessBase"]
[SourceQuality "1"]
[WhiteTeam "Romania"]
[BlackTeam "Denmark"]
[WhiteTeamCountry "ROU"]
[BlackTeamCountry "DEN"]
[TimeControl "40/5400+30:1800+30"]

{[%evp 10,51,19,12,37,20,28,20,20,15,23,30,38,37,36,23,13,0,32,10,14,0,14,2,8,-13,-24,-22,-14,-39,-43,-47,0,0,0,0,7,10,11,0,0,0,6,0]} 1. e4 {[%emt 0:00:39]} e5 {[%emt 0:00:09]} 2. Nf3 {[%emt 0:00:16]} Nc6 {[%emt 0:00:08]} 3. Bc4 {[%emt 0:00:59]} Bc5 {[%emt 0:00:23]} 4. c3 {[%emt 0:00:12]} Nf6 {[%emt 0:00:19]} 5. d3 {[%emt 0:00:05]} O-O {[%emt 0:00:36]} 6. Nbd2 {[%emt 0:01:08]} d5 {[%emt 0:04:53] C54: Giuoco Piano: 4 c3 Nf6, main lines with 5 d4 and 5 d3.} 7. exd5 {[%emt 0:00:18]} Nxd5 {[%emt 0:00:10]} 8. Ne4 {[%emt 0:00:24]} Be7 {[%emt 0:00:40]} 9. O-O {[%emt 0:01:30]} Nb6 {[%emt 0:01:16]} 10. Bb3 {[%emt 0:01:49]} Bf5 {[%emt 0:00:53]} 11. a4 {[%emt 0:00:32]} a5 {[%emt 0:00:24]} 12. Be3 {[%emt 0:00:53]} Nd5 {[%emt 0:04:52]} 13. Bc4 {[%emt 0:00:17] [#]} Qd7 $146 {[%emt 0:08:25]} ({Predecessor:} 13... Nxe3 14. fxe3 Bxe4 15. dxe4 Bc5 16. Qe2 Qe7 17. h4 Nd8 18. Rad1 Bd6 19. Ng5 h6 {1-0 Rapport,R (2701)-Blagojevic,D (2505) SRB Central-ch op-A 7th 2014 (9)}) 14. Qb3 {[%emt 0:04:57][%csl LRb7,LRd5]} Rad8 {[%emt 0:03:19]} 15. h3 {[%emt 0:10:21]} (15. Qxb7 Rb8 16. Qa6 Nxe3 17. fxe3 Bxe4 18. dxe4 Rb6 19. Bxf7+ Rxf7 $17) 15... h6 {[%emt 0:04:29]} 16. Rad1 {[%emt 0:08:05]} (16. Qxb7 $2 Nxe3 17. fxe3 Rb8 $19) 16... Bg6 {[%emt 0:07:50]} 17. Nc5 {[%emt 0:18:57]} (17. Qxb7 $2 Nxe3 18. fxe3 Rb8 $19) 17... Bxc5 {[%emt 0:01:11]} 18. Bxc5 {[%emt 0:00:03]} Rfe8 {[%emt 0:01:45] next ...Bh5 is good for Black.} 19. Rd2 {[%emt 0:23:38]} (19. d4 $5 {[%cal Rd4e5]} Be4 20. Nxe5 (20. Qxb7 $2 {too greedy.} Bxf3 21. Bxd5 Bxd5 $19) 20... Nxe5 21. dxe5 Bxg2 22. Bxd5 (22. Kxg2 Nf4+ 23. Kg3 Qxh3+ 24. Kxf4 Qh4+ 25. Kf3 Qh5+ 26. Kg3 Qg5+ 27. Kh3 Qh5+ 28. Kg3 Qg5+ 29. Kh3 Qh5+ 30. Kg3 $11) 22... Bxd5 23. c4 $11) 19... Nf4 {[%emt 0:11:25][%cal Of4h3]} 20. Be3 {[%emt 0:01:48]} (20. Qxb7 $2 {is the wrong capture.} Rb8 21. Qa6 Bh5 $19) 20... Nxd3 {[%emt 0:06:05]} (20... Nxh3+ $1 $15 21. gxh3 e4) 21. Qxb7 $11 {[%emt 0:01:35] [#] Bxd3 is the strong threat. The position is equal.} (21. Rfd1 $5 e4 $8 22. Qxb7 $11) 21... Rb8 {[%emt 0:05:50]} 22. Qa6 {[%emt 0:00:21][%cal Rc4d3]} Ra8 {[%emt 0:09:16]} 23. Qb5 {[%emt 0:00:42][%cal Rc4d3]} Rab8 $1 {[%emt 0:01:36]} 24. Qa6 {[%emt 0:00:06][%cal Rc4d3]} Ra8 {[%emt 0:01:07]} 25. Qb5 {[%emt 0:00:28][%cal Rc4d3]} Rab8 $1 {[%emt 0:01:21]} 26. Qa6 {[%emt 0:06:04] Weighted Error Value: White=0.07 (flawless) /Black=0.07 (flawless)} 1/2-1/2

[Event "ETCC Open 2023"]
[Site "Budva"]
[Date "2023.11.12"]
[Round "2.42"]
[White "Andersen, Mads"]
[Black "Deac, Bogdan-Daniel"]
[Result "1/2-1/2"]
[ECO "C67"]
[WhiteElo "2612"]
[BlackElo "2700"]
[Annotator "TA"]
[PlyCount "84"]
[EventDate "2023.11.10"]
[EventType "team-tourn"]
[EventCountry "MNE"]
[SourceTitle "playchess.com"]
[Source "ChessBase"]
[SourceQuality "1"]
[WhiteTeam "Denmark"]
[BlackTeam "Romania"]
[WhiteTeamCountry "DEN"]
[BlackTeamCountry "ROU"]
[TimeControl "40/5400+30:1800+30"]

{[%evp 12,84,23,18,35,35,39,29,32,30,40,17,39,43,46,20,20,25,22,17,19,18,23,15,27,0,0,0,0,0,0,-4,0,-10,0,0,0,0,0,-1,0,0,0,-35,-16,-19,0,-4,-4,-10,0,0,7,0,0,0,0,0,0,0,0,0,0,-7,0,-2,13,0,0,0,1,0,0,-7,0]} 1. e4 {[%emt 0:00:07]} e5 {[%emt 0:00:04]} 2. Nf3 {[%emt 0:00:09]} Nc6 {[%emt 0:00:02]} 3. Bb5 {[%emt 0:00:13]} Nf6 {[%emt 0:00:09]} 4. O-O {[%emt 0:00:20]} Nxe4 {[%emt 0:00:05]} 5. Re1 {[%emt 0:00:31]} Nd6 {[%emt 0:00:03]} 6. Nxe5 {[%emt 0:00:51]} Be7 {[%emt 0:00:08]} 7. Bf1 {[%emt 0:00:26]} Nf5 {[%emt 0:02:32] C67: Ruy Lopez: Berlin Defence: 4 0-0 Nxe4.} 8. Nf3 {[%emt 0:00:44]} O-O {[%emt 0:00:19]} 9. d4 {[%emt 0:00:24]} d5 {[%emt 0:00:02] White has an edge.} 10. c3 {[%emt 0:00:25]} Bd6 {[%emt 0:00:27]} 11. b3 {[%emt 0:02:02] [#]} Be7 $146 {[%emt 0:27:06]} ({Predecessor:} 11... Re8 12. Na3 a6 13. Nc2 Rxe1 14. Qxe1 Nce7 15. c4 b6 16. Qc3 Ng6 17. Bg5 Be7 18. Bxe7 Nfxe7 {½-½ Nepomniachtchi,I (2773)-So,W (2754) Abidjan GCT blitz 2019 (5)}) 12. a4 {[%emt 0:11:16]} Re8 {[%emt 0:04:50]} 13. Ra2 {[%emt 0:12:58]} Nd6 {[%emt 0:01:43]} 14. Bd3 {[%emt 0:04:23]} Bf5 {[%emt 0:07:15]} 15. Bxf5 {[%emt 0:04:45]} Nxf5 {[%emt 0:00:14]} 16. Rae2 {[%emt 0:00:24]} Qd7 {[%emt 0:04:53]} 17. Qd3 {[%emt 0:05:10]} f6 {[%emt 0:09:34]} 18. Bf4 {[%emt 0:09:08][%cal Of4c7]} g6 {[%emt 0:01:22]} 19. h4 {[%emt 0:05:43]} Bd6 {[%emt 0:01:11]} 20. Bxd6 {[%emt 0:07:40]} (20. Bh2 {seems wilder.} Kf7 21. h5 Bxh2+ 22. Nxh2 Rxe2 23. Qxe2 Re8 24. hxg6+ hxg6 25. Qxe8+ Qxe8 26. Rxe8 Kxe8 27. Nd2) 20... Nxd6 {[%emt 0:02:19]} 21. Nbd2 {[%emt 0:00:35]} Rxe2 {[%emt 0:01:01]} (21... Kf7 {feels hotter.} 22. g3 Rxe2 23. Rxe2 Re8) 22. Rxe2 {[%emt 0:00:10]} Qf5 {[%emt 0:12:21]} 23. Qxf5 {[%emt 0:04:06]} Nxf5 {[%emt 0:00:36]} 24. g3 {[%emt 0:01:04]} Kf7 {[%emt 0:02:57]} 25. Ne1 {[%emt 0:01:13]} Nd8 {[%emt 0:03:29]} 26. Nd3 {[%emt 0:09:03]} Ne6 {[%emt 0:00:44]} 27. Nb4 {[%emt 0:09:09]} Rd8 {[%emt 0:07:50]} 28. Nd3 {[%emt 0:00:11] The position is equal.} b6 {[%emt 0:02:16]} 29. b4 {[%emt 0:00:41]} Ra8 {[%emt 0:02:35]} 30. Nb3 {[%emt 0:03:50]} a6 {[%emt 0:02:59]} 31. Ra2 {[%emt 0:01:57]} h5 {[%emt 0:02:44]} 32. Kf1 {[%emt 0:01:08]} Nd6 {[%emt 0:00:14]} 33. f3 {[%emt 0:00:25]} Nc4 {[%emt 0:00:50]} 34. Nb2 {[%emt 0:02:05]} Nd6 {[%emt 0:00:26]} 35. Nd3 {[%emt 0:00:24]} Ke7 {[%emt 0:01:03]} 36. Kf2 {[%emt 0:00:56]} Kd7 {[%emt 0:00:36]} 37. Nb2 {[%emt 0:01:36]} Rg8 {[%emt 0:01:26]} 38. Ra1 {[%emt 0:01:06]} Rf8 {[%emt 0:00:14]} 39. Re1 {[%emt 0:00:49]} Ra8 {[%emt 0:00:30]} 40. Ra1 {[%emt 0:00:55]} Rg8 {[%emt 0:00:42]} 41. Rh1 {[%emt 0:09:48]} Rb8 {[%emt 0:06:13]} 42. Nd1 {[%emt 0:02:42]} Nc4 {[%emt 0:03:12] Weighted Error Value: White=0.05 (flawless) /Black=0.05 (flawless)} 1/2-1/2

[Event "ETCC Open 2023"]
[Site "Budva"]
[Date "2023.11.12"]
[Round "2.43"]
[White "Shevchenko, Kirill"]
[Black "Ochsner, Bjorn Moller"]
[Result "1-0"]
[ECO "E40"]
[WhiteElo "2665"]
[BlackElo "2534"]
[Annotator "TA"]
[PlyCount "73"]
[EventDate "2023.11.10"]
[EventType "team-tourn"]
[EventCountry "MNE"]
[SourceTitle "playchess.com"]
[Source "ChessBase"]
[SourceQuality "1"]
[WhiteTeam "Romania"]
[BlackTeam "Denmark"]
[WhiteTeamCountry "ROU"]
[BlackTeamCountry "DEN"]
[TimeControl "40/5400+30:1800+30"]

{[%evp 10,73,8,0,26,15,5,14,3,1,4,-6,28,39,37,19,71,-12,76,92,77,78,93,89,103,93,110,117,110,106,131,144,241,244,241,257,246,251,236,238,241,219,373,381,401,394,420,388,514,518,643,640,613,541,628,627,592,591,2232,1062,1044,1036,987,991,1497,1683]} 1. c4 {[%emt 0:00:04]} e6 {[%emt 0:00:35]} 2. Nc3 {[%emt 0:01:08]} d5 {[%emt 0:00:22]} 3. d4 {[%emt 0:00:05]} Bb4 {[%emt 0:00:23]} 4. a3 {[%emt 0:02:06]} Bxc3+ {[%emt 0:00:21]} 5. bxc3 {[%emt 0:00:05]} Nf6 {[%emt 0:00:18]} 6. e3 {[%emt 0:02:38]} c6 {[%emt 0:00:41] E40: Nimzo-Indian: Rubinstein (4 e3): Unusual Black 4th moves.} 7. Bd3 {[%emt 0:04:44] 7.a4 deserves study.} e5 {[%emt 0:04:47]} 8. Ne2 {[%emt 0:13:40]} e4 {[%emt 0:06:40] The position is equal.} 9. Bb1 {[%emt 0:02:10]} O-O {[%emt 0:03:42]} 10. O-O {[%emt 0:19:38]} Re8 {[%emt 0:32:03]} 11. Ng3 {[%emt 0:09:58]} b6 {[%emt 0:14:37]} 12. f3 {[%emt 0:02:33]} exf3 {[%emt 0:02:40]} (12... dxc4 13. fxe4 (13. Bxe4 Nxe4 14. Nxe4 Bb7 $14) (13. Nxe4 Na6 $16) 13... Be6 14. e5 $16) (12... Ba6 $11) 13. gxf3 {[%emt 0:09:49] [#]} ({White should try} 13. Qxf3 $16 Ba6 14. Bd3) 13... Ba6 $146 {[%emt 0:01:04]} (13... dxc4 $11 {keeps the balance.} 14. Qe2 h5) ({Predecessor:} 13... Bh3 14. Re1 Nbd7 15. e4 dxc4 16. f4 Nf8 17. f5 Bg4 18. Qd2 Nh5 19. Nxh5 Bxh5 {1-0 Iljiushenok,I (2479)-Voit,D (2337) Moscow Aeroflot op-B 15th 2016 (4)}) 14. e4 $1 $16 {[%emt 0:00:16] White stays focused until the end.} Bxc4 {[%emt 0:01:06]} 15. Rf2 {[%emt 0:04:29]} dxe4 {[%emt 0:16:23]} 16. fxe4 {[%emt 0:00:04]} Nbd7 {[%emt 0:00:28]} 17. Qf3 {[%emt 0:02:46]} Be6 {[%emt 0:03:00]} 18. Nf5 $1 {[%emt 0:06:24]} Bxf5 {[%emt 0:02:55]} 19. Qxf5 {[%emt 0:00:05]} Qe7 {[%emt 0:00:27][%cal Rf6e4]} (19... g6 $2 20. Qf3 $18) 20. Bg5 {[%emt 0:03:50] And now e5 would win. White is more active.} ({Don't play} 20. e5 Nxe5 21. Qxe5 (21. dxe5 Qxe5 22. Qxe5 Rxe5 $16) 21... Qxe5 22. dxe5 Rxe5 $16) 20... h6 {[%emt 0:06:50]} (20... Qe6 $16) 21. Bxf6 $18 {[%emt 0:04:13][%mdl 64] Remove Defender, Deflection} Qxf6 {[%emt 0:00:32]} 22. Qxd7 {[%emt 0:00:46]} Qg5+ {[%emt 0:00:11]} 23. Kf1 {[%emt 0:00:16][%cal Bg1f1,Bf1g2,Bg2f3,Bf3e2,Be2d2,Bd2d3,Bd3c2,Bc2b3][%mdl 32]} Qc1+ {[%emt 0:00:52]} 24. Kg2 {[%emt 0:00:05]} Qg5+ {[%emt 0:00:20] [#]} 25. Kf3 $1 {[%emt 0:00:08] aiming for e5.} Re6 {[%emt 0:00:38]} (25... Rad8 26. Qc7 c5) 26. Ke2 {[%emt 0:04:49]} Qg4+ {[%emt 0:00:52]} 27. Kd2 {[%emt 0:00:06]} Qg5+ {[%emt 0:00:33]} 28. Kd3 {[%emt 0:01:20]} Qb5+ {[%emt 0:00:21] [#]} 29. Kc2 $1 {[%emt 0:00:09] White is clearly winning.} Rxe4 {[%emt 0:00:46]} 30. Qxf7+ {[%emt 0:00:11]} ({And not} 30. Rxf7 Qe2+ 31. Kb3 Qb5+ 32. Kc2 Qe2+ 33. Kb3 Qb5+ 34. Kc2 $11) 30... Kh8 {[%emt 0:00:02]} 31. a4 {[%emt 0:00:33]} Re2+ {[%emt 0:00:54]} 32. Rxe2 {[%emt 0:00:12]} Qxe2+ {[%emt 0:00:02]} 33. Kb3 {[%emt 0:00:07]} c5 {[%emt 0:00:54]} 34. Qf5 {[%emt 0:00:54]} (34. Qg6 $142 Kg8 35. Be4 c4+ 36. Ka3 Qxe4 37. Qxe4) 34... c4+ {[%emt 0:00:35]} 35. Ka3 {[%emt 0:00:05][%csl Gb1][%cal Rf5h7]} Qe7+ {[%emt 0:00:34]} 36. Kb2 {[%emt 0:00:04][%csl Gb1][%cal Rf5h7]} g6 {[%emt 0:00:29]} 37. Qxg6 {[%emt 0:00:28] Artfully played by Shevchenko.   Weighted Error Value: White=0.10 (very precise) /Black=0.48} 1-0

[Event "ETCC Open 2023"]
[Site "Budva"]
[Date "2023.11.12"]
[Round "2.44"]
[White "Rasmussen, Allan Stig"]
[Black "Nisipeanu, Liviu-Dieter"]
[Result "1/2-1/2"]
[ECO "E94"]
[WhiteElo "2507"]
[BlackElo "2591"]
[Annotator "TA"]
[PlyCount "60"]
[EventDate "2023.11.10"]
[EventType "team-tourn"]
[EventCountry "MNE"]
[SourceTitle "playchess.com"]
[Source "ChessBase"]
[SourceQuality "1"]
[WhiteTeam "Denmark"]
[BlackTeam "Romania"]
[WhiteTeamCountry "DEN"]
[BlackTeamCountry "ROU"]
[TimeControl "40/5400+30:1800+30"]

{[%evp 15,60,0,32,41,35,41,35,32,37,42,34,26,22,8,22,20,29,16,16,32,29,14,17,-4,0,12,16,0,0,0,0,0,0,-15,-12,-22,-14,-55,0,0,0,0,0,0,0,0,0]} 1. d4 {[%emt 0:00:05]} Nf6 {[%emt 0:00:10]} 2. c4 {[%emt 0:00:16]} g6 {[%emt 0:00:13]} 3. Nc3 {[%emt 0:00:33]} Bg7 {[%emt 0:00:06]} 4. e4 {[%emt 0:00:35]} d6 {[%emt 0:00:06]} 5. Nf3 {[%emt 0:00:12]} O-O {[%emt 0:00:08]} 6. Be2 {[%emt 0:00:13]} e5 {[%emt 0:00:13]} 7. O-O {[%emt 0:00:18]} Na6 {[%emt 0:00:06]} 8. Re1 {[%emt 0:02:07]} Bg4 {[%emt 0:01:15]} 9. Be3 {[%emt 0:01:46] E94: King's Indian: Classical: 6 Be2 e5 7 0-0: Various Black 7th moves.} Bxf3 {[%emt 0:00:22]} 10. Bxf3 {[%emt 0:01:03]} exd4 {[%emt 0:00:07]} 11. Bxd4 {[%emt 0:00:28] White is slightly better.} (11. Qxd4 Ng4 12. Qd2 (12. e5 Nxe5 13. Qd1 Nc5 $17) 12... Nxe3 13. Qxe3 c6 $15) 11... c6 {[%emt 0:00:06]} 12. Qd2 {[%emt 0:07:06] [#]} Re8 $146 {[%emt 0:14:26]} ({Predecessor:} 12... Nc5 13. Rad1 Ne6 14. Be3 Qa5 15. Qc2 Nd7 16. Rxd6 Rfd8 17. Red1 Ne5 18. Be2 Rxd6 19. Rxd6 {½-½ Zhou,J (2550)-Chen,R (2396) Los Angeles 1000GM Spring op 2023 (5)}) 13. Rad1 {[%emt 0:08:07]} h5 {[%emt 0:04:58]} 14. Be3 {[%emt 0:31:33][%cal Bd4e3,Be3f4,Bf4d6][%mdl 32]} Nc5 {[%emt 0:03:02]} 15. Bf4 {[%emt 0:02:53]} Qb6 {[%emt 0:13:11]} 16. Bxd6 {[%emt 0:01:10]} ({Much weaker is} 16. Qxd6 Rad8 17. Qc7 Rxd1 18. Nxd1 Qb4 $17) 16... Nfd7 {[%emt 0:00:15][%cal Bf6d7,Bd7e5,Be5g4][%mdl 32]} 17. Qc2 {[%emt 0:07:09]} Ne5 {[%emt 0:07:08]} 18. Be2 {[%emt 0:01:04]} Rad8 {[%emt 0:00:12][%cal Oe5d3]} 19. a3 {[%emt 0:04:41] [#] And now b4 would win.} Ncd3 {[%emt 0:15:39][%mdl 64] Discovered Attack} 20. Bxd3 {[%emt 0:04:02]} Rxd6 {[%emt 0:00:07]} 21. Be2 {[%emt 0:03:40]} Rxd1 {[%emt 0:06:37]} ({Don't play} 21... Rf6 22. Rf1 $16) 22. Rxd1 {[%emt 0:00:42]} Ng4 $1 {[%emt 0:00:24]} 23. Bxg4 {[%emt 0:01:27]} hxg4 {[%emt 0:00:06]} 24. Rd3 {[%emt 0:06:50]} Qc5 {[%emt 0:04:21]} 25. Qb3 {[%emt 0:05:00]} (25. Rd7 {feels hotter.} Qxc4 26. Rxb7 Bxc3 27. Qxc3 Qxe4 28. h4) 25... Bd4 {[%emt 0:03:09]} 26. Kf1 {[%emt 0:01:51]} (26. Rd2 {is more complex.} Qe5 27. Rd3 f5 28. Rd2) 26... Qe5 {[%emt 0:06:57]} (26... Bxf2 $15 27. Qb4 a5 28. Qxc5 Bxc5) 27. h3 $11 {[%emt 0:00:57] The position is equal.} ({Of course not} 27. Qxb7 Bxc3 28. bxc3 Qxe4 $19) 27... Bxc3 {[%emt 0:04:14][%mdl 64] [#] Remove Defender} 28. Qxc3 {[%emt 0:00:03]} Qh2 {[%emt 0:00:28]} 29. f3 {[%emt 0:02:23]} gxh3 {[%emt 0:01:48]} 30. gxh3 {[%emt 0:00:03]} Qxh3+ {[%emt 0:00:25] Weighted Error Value: White=0.07 (flawless) /Black=0.05 (flawless)} 1/2-1/2

[Event "ETCC Open 2023"]
[Site "Budva"]
[Date "2023.11.12"]
[Round "2.45"]
[White "Pechac, Jergus"]
[Black "Radjabov, Teimour"]
[Result "1/2-1/2"]
[ECO "D41"]
[WhiteElo "2580"]
[BlackElo "2745"]
[Annotator "TA"]
[PlyCount "60"]
[EventDate "2023.11.10"]
[EventType "team-tourn"]
[EventCountry "MNE"]
[SourceTitle "playchess.com"]
[Source "ChessBase"]
[SourceQuality "1"]
[WhiteTeam "Slovakia"]
[BlackTeam "Azerbaijan"]
[WhiteTeamCountry "SVK"]
[BlackTeamCountry "AZE"]
[TimeControl "40/5400+30:1800+30"]

{[%evp 11,60,30,25,22,36,-21,35,15,38,12,19,0,0,18,13,22,32,39,37,39,42,8,7,9,9,8,11,8,19,0,0,0,0,0,0,0,0,0,0,0,0,0,12,12,12,12,12,7,11,11,12]} 1. d4 {[%emt 0:00:04]} Nf6 {[%emt 0:00:15]} 2. c4 {[%emt 0:00:05]} e6 {[%emt 0:00:04]} 3. Nf3 {[%emt 0:00:04]} d5 {[%emt 0:00:06]} 4. Nc3 {[%emt 0:00:05]} c5 {[%emt 0:02:05]} 5. cxd5 {[%emt 0:00:07]} cxd4 {[%emt 0:00:39]} 6. Qxd4 {[%emt 0:00:07]} exd5 {[%emt 0:00:17]} 7. e4 {[%emt 0:00:05] D41: Queen's Gambit Declined: Semi-Tarrasch with 5 cxd5.} dxe4 {[%emt 0:00:39]} 8. Qxd8+ {[%emt 0:00:06]} Kxd8 {[%emt 0:00:03]} 9. Ng5 {[%emt 0:00:08][%csl LRe4,LRf7] White is slightly better.} Be6 {[%emt 0:00:18]} 10. a3 {[%emt 0:00:04]} Nbd7 {[%emt 0:04:55]} 11. Ncxe4 {[%emt 0:00:22]} Nxe4 {[%emt 0:03:45]} 12. Nxe4 {[%emt 0:00:08] [#]} Rc8 $146 {[%emt 0:04:25]} ({Predecessor:} 12... h6 13. Bf4 g5 14. Bd2 Bg7 15. O-O-O Rc8+ 16. Kb1 Bb3 17. Bb5 Rc7 18. Rc1 Bd5 {1-0 Martirosyan,H (2683)-Nepomniachtchi,I (2779) World-chT Rapid 2023 (10)}) 13. Be3 {[%emt 0:03:15]} a6 {[%emt 0:00:53]} 14. Be2 {[%emt 0:07:38]} h6 {[%emt 0:19:10]} 15. Rd1 {[%emt 0:04:31]} f5 {[%emt 0:02:09]} 16. Nd6 {[%emt 0:26:12]} Bxd6 {[%emt 0:00:16] The position is equal.} 17. Rxd6 {[%emt 0:00:07]} Ke7 {[%emt 0:00:09]} 18. Rd4 {[%emt 0:00:40]} Rc2 {[%emt 0:14:02]} 19. Rd2 {[%emt 0:03:28]} Rhc8 {[%emt 0:02:14]} 20. Bd3 {[%emt 0:03:31] A strong pair of Bishops.} Rxd2 {[%emt 0:03:23]} 21. Kxd2 {[%emt 0:00:11]} Ne5 {[%emt 0:00:05] [#] Strongly threatening ...Rd8.} 22. Bd4 {[%emt 0:00:50]} Nxd3 {[%emt 0:00:05]} 23. Kxd3 $11 {[%emt 0:00:04][%mdl 4096] Endgame KRB-KRB} Kf7 {[%emt 0:00:17]} 24. Re1 {[%emt 0:00:32]} g5 {[%emt 0:00:46]} 25. g3 {[%emt 0:00:49]} Bc4+ {[%emt 0:00:17]} 26. Kd2 {[%emt 0:00:14]} Re8 {[%emt 0:00:38]} 27. Rxe8 {[%emt 0:00:06]} Kxe8 {[%emt 0:00:02]} 28. Bg7 {[%emt 0:00:09]} h5 {[%emt 0:00:04]} 29. Bf6 {[%emt 0:00:04]} g4 $1 {[%emt 0:00:03]} 30. Bc3 {[%emt 0:00:06]} Kf7 {[%emt 0:00:08] Weighted Error Value: White=0.06 (flawless) /Black=0.02 (flawless)} 1/2-1/2

[Event "ETCC Open 2023"]
[Site "Budva"]
[Date "2023.11.12"]
[Round "2.46"]
[White "Mamedov, Rauf"]
[Black "Gazik, Viktor"]
[Result "1-0"]
[ECO "A49"]
[WhiteElo "2644"]
[BlackElo "2547"]
[Annotator "TA"]
[PlyCount "103"]
[EventDate "2023.11.10"]
[EventType "team-tourn"]
[EventCountry "MNE"]
[SourceTitle "playchess.com"]
[Source "ChessBase"]
[SourceQuality "1"]
[WhiteTeam "Azerbaijan"]
[BlackTeam "Slovakia"]
[WhiteTeamCountry "AZE"]
[BlackTeamCountry "SVK"]
[TimeControl "40/5400+30:1800+30"]

{[%evp 11,103,23,29,21,16,7,24,11,6,1,38,31,60,49,58,50,74,74,89,77,77,77,63,77,78,70,120,122,116,132,128,134,183,171,177,178,176,187,220,198,233,241,227,202,192,187,187,187,241,241,241,241,241,241,241,240,239,239,237,235,233,233,241,238,244,244,314,325,321,321,320,314,333,326,318,308,333,333,555,480,529,480,630,325,806,760,29967,29972,29984,29985,29984,29985,29985,29986]} 1. Nf3 {[%emt 0:00:11]} Nf6 {[%emt 0:00:57]} 2. g3 {[%emt 0:00:04]} g6 {[%emt 0:04:03]} 3. Bg2 {[%emt 0:00:25]} Bg7 {[%emt 0:00:05]} 4. O-O {[%emt 0:00:05]} O-O {[%emt 0:00:05]} 5. d4 {[%emt 0:00:03]} d6 {[%emt 0:00:54]} 6. Re1 {[%emt 0:00:04]} Nbd7 {[%emt 1:27:26]} 7. a4 {[%emt 0:10:34] A49: 1 d4 Nf6 2 Nf3 g6 3 g3: Anti-King's Indian systems.} a5 {[%emt 0:00:00]} 8. Nc3 {[%emt 0:10:58]} e5 {[%emt 0:00:00]} 9. dxe5 {[%emt 0:01:54] White has an edge.} dxe5 {[%emt 0:00:00]} 10. Nd2 {[%emt 0:00:08][%cal Bf3d2,Bd2c4,Bc4d6][%mdl 32] [#]} c6 $146 {[%emt 0:00:00]} ({Predecessor:} 10... Re8 11. Nc4 h6 12. h3 Nh7 13. e4 Ng5 14. Bxg5 hxg5 15. Nb5 Rf8 16. Qd2 c6 {1-0 Levin,G (2424)-Kantsler,B (2403) Ramat Gan Lag BaOmer op rapid 2023 (3)}) 11. Nc4 {[%emt 0:17:36]} Qc7 {[%emt 0:00:00]} 12. Qd6 {[%emt 0:01:07]} Qxd6 {[%emt 0:00:00]} 13. Nxd6 {[%emt 0:00:17]} Nb6 {[%emt 0:00:00]} 14. Rd1 {[%emt 0:14:26] White leaves nothing to chance now.} Rd8 {[%emt 0:00:00]} 15. Be3 {[%emt 0:01:35]} Nbd5 {[%emt 0:00:00]} 16. Bxd5 {[%emt 0:12:22]} cxd5 {[%emt 0:00:00] [#]} 17. Nxd5 $1 {[%emt 0:00:10]} Nxd5 {[%emt 0:00:00]} (17... Rxd6 $2 18. Nxf6+ Bxf6 19. Rxd6 $18) 18. Rxd5 {[%emt 0:00:03]} Bg4 {[%emt 0:00:00] Black is weak on the dark squares} (18... Be6 $14 19. Rd2 e4) 19. f3 $16 {[%emt 0:02:19]} Be6 {[%emt 0:00:00]} 20. Rd3 {[%emt 0:02:12] White is much more active.} e4 {[%emt 0:00:00]} 21. Nxe4 {[%emt 0:00:33]} Bc4 {[%emt 0:00:00]} (21... Rxd3 $16 22. cxd3 (22. exd3 f5 $16) 22... Rc8) 22. Rxd8+ $18 {[%emt 0:01:21]} Rxd8 {[%emt 0:00:00]} 23. Kf2 {[%emt 0:00:08]} Bxb2 {[%emt 0:00:00]} 24. Rb1 {[%emt 0:00:09]} Bg7 {[%emt 0:00:00]} 25. Rxb7 {[%emt 0:00:15]} Bd5 {[%emt 0:00:00]} 26. Rb5 {[%emt 0:00:27]} f5 {[%emt 0:00:00]} 27. Bg5 {[%emt 0:03:37]} Rd7 {[%emt 0:00:00]} 28. Nf6+ {[%emt 0:00:19]} Bxf6 {[%emt 0:00:00]} 29. Bxf6 {[%emt 0:00:02][%mdl 4096] Endgame KRB-KRB} Bc6 {[%emt 0:00:00]} (29... Kf7 $142) 30. Rxa5 {[%emt 0:00:13]} Rd2 {[%emt 0:00:00]} 31. c3 {[%emt 0:01:55]} Ra2 {[%emt 0:00:00]} 32. Ra7 {[%emt 0:00:22]} Bxa4 {[%emt 0:00:00]} 33. Rg7+ {[%emt 0:00:42]} Kf8 {[%emt 0:00:00]} 34. Rxh7 {[%emt 0:00:06]} Bb5 {[%emt 0:00:00]} 35. Re7 {[%emt 0:00:05]} Rc2 {[%emt 0:00:14]} 36. Re3 {[%emt 0:01:38]} Kf7 {[%emt 0:00:06]} 37. Bg5 {[%emt 0:00:07]} Bc4 {[%emt 0:00:10]} 38. h3 {[%emt 0:00:07][%cal Bh2h3,Bh3g4][%mdl 32]} Bb5 {[%emt 0:01:02]} 39. g4 {[%emt 0:00:32]} fxg4 {[%emt 0:00:04]} 40. hxg4 {[%emt 0:00:06]} ({Much less strong is} 40. fxg4 Bc4 41. h4 Be6 $18) 40... Bc4 {[%emt 0:00:07]} 41. Bd8 {[%emt 0:32:59]} Bb5 {[%emt 0:30:56]} 42. Bb6 {[%emt 0:00:12]} Bc4 {[%emt 0:00:15]} 43. Bd4 {[%emt 0:00:04] Re5 would be deadly.} Ra2 {[%emt 0:00:15]} 44. Re5 {[%emt 0:00:09] Hoping for f4.} Ba6 $2 {[%emt 0:01:00] [#]} (44... Ra6 {might work better.} 45. Rc5 Be6 46. Rc7+ Ke8) 45. f4 {[%emt 0:00:17][%cal Bf3f4,Bf4f5,Bf5f6,Bf6f7][%mdl 32]} Bc4 {[%emt 0:01:26]} 46. Kf3 {[%emt 0:00:11]} Rd2 {[%emt 0:00:07]} 47. f5 {[%emt 0:02:54]} g5 $2 {[%emt 0:00:39]} (47... gxf5 48. gxf5 Rb2) 48. Rc5 {[%emt 0:00:35]} Bxe2+ {[%emt 0:00:09]} 49. Ke3 {[%emt 0:00:03] White mates.} Ra2 {[%emt 0:00:53]} 50. Rc7+ {[%emt 0:00:03]} Ke8 {[%emt 0:00:32]} 51. f6 {[%emt 0:00:06]} Kd8 {[%emt 0:00:08]} 52. f7 {[%emt 0:00:29] Weighted Error Value: White=0.03 (flawless) /Black=0.43} 1-0